bitfinex/quotes_BTCUSD_20240613
["timestamp","ask_amount","ask_price","bid_price","bid_amount"]
[1718284647257,0.00857,67888.0,67887.0,0.114]
[1718284647475,0.18657,67888.0,67887.0,0.014]
[1718284647962,0.18657,67888.0,67886.0,0.05]
[1718284648387,0.18657,67888.0,67887.0,0.014]
[1718284648818,0.50808993,67888.0,67887.0,0.014]
[1718284649032,0.50808993,67888.0,67880.0,0.05]
[1718284649248,0.0747,67882.0,67880.0,0.05]
[1718284649465,0.0747,67882.0,67878.0,0.000946]
[1718284649688,0.12777,67881.0,67878.0,0.000946]
[1718284649907,0.1025,67881.0,67878.0,0.000946]
[1718284652043,0.178,67883.0,67855.0,0.05]
[1718284652044,0.0627,67878.0,67855.0,0.05]
[1718284652262,0.0192,67872.0,67856.0,0.05]
[1718284652468,0.2215,67857.0,67856.0,0.05]
[1718284653173,0.2215,67857.0,67855.0,0.05]
[1718284653375,0.2215,67857.0,67856.0,0.05]
[1718284655029,0.178,67857.0,67856.0,0.05]
[1718284655884,0.178,67857.0,67856.0,0.051]
[1718284656110,0.177,67857.0,67856.0,0.05]
[1718284656344,0.192,67857.0,67856.0,0.051]
[1718284656582,0.192,67857.0,67856.0,0.052]
[1718284657039,0.178,67857.0,67856.0,0.05]
[1718284657455,0.187,67857.0,67856.0,0.051]
[1718284657872,0.178,67857.0,67855.0,0.15]
[1718284658102,0.178,67857.0,67856.0,0.05]
[1718284658307,0.192,67857.0,67856.0,0.051]
[1718284658943,0.192,67857.0,67856.0,0.22315996]
[1718284658944,0.014,67857.0,67856.0,0.22315996]
[1718284659163,0.014,67857.0,67856.0,0.27315996]
[1718284659393,0.014,67857.0,67856.0,0.29315996]
[1718284659817,0.178,67864.0,67856.0,0.29315996]
[1718284659818,0.178,67864.0,67863.0,0.15]
[1718284661115,0.192,67864.0,67863.0,0.151]
[1718284661554,0.192,67864.0,67863.0,0.051]
[1718284661777,0.178,67864.0,67863.0,0.05]
[1718284663433,0.192,67864.0,67863.0,0.051]
[1718284663644,0.192,67864.0,67863.0,0.001]
[1718284663844,0.2667,67864.0,67863.0,0.002]
[1718284665443,0.192,67864.0,67863.0,0.002]
[1718284665893,0.192,67864.0,67863.0,0.152]
[1718284668666,0.192,67864.0,67863.0,0.172]
[1718284669091,0.192,67864.0,67863.0,0.202]
[1718284669298,0.192,67864.0,67863.0,0.222]
[1718284671133,0.178,67864.0,67863.0,0.221]
[1718284671343,0.178,67864.0,67863.0,0.22]
[1718284671546,0.178,67869.0,67868.0,0.17]
[1718284673444,0.178,67875.0,67874.0,0.05]
[1718284673643,0.178,67875.0,67874.0,0.2]
[1718284673842,0.0665,67875.0,67874.0,0.2]
[1718284674371,0.0665,67875.0,67874.0,0.22]
[1718284675336,0.0665,67875.0,67874.0,0.2]
[1718284676581,0.0675,67875.0,67874.0,0.206]
[1718284676984,0.001,67875.0,67874.0,0.206]
[1718284677611,0.001,67875.0,67874.0,0.211]
[1718284677815,0.001,67875.0,67874.0,0.231]
[1718284680792,0.001,67875.0,67874.0,0.111]
[1718284681203,0.2537,67875.0,67874.0,0.061]
[1718284681832,0.2537,67875.0,67874.0,0.161]
[1718284682040,0.179,67875.0,67874.0,0.161]
[1718284682264,0.0747,67879.0,67877.0,0.05]
[1718284682472,0.178,67878.0,67877.0,0.05]
[1718284683774,0.178,67878.0,67874.0,0.011]
[1718284683775,0.0747,67876.0,67874.0,0.011]
[1718284683986,0.24591993,67875.0,67874.0,0.011]
[1718284684205,0.32061993,67875.0,67874.0,0.011]
[1718284685063,0.32061993,67875.0,67874.0,0.006]
[1718284685271,0.32061993,67875.0,67863.0,0.1]
[1718284685475,0.178,67864.0,67863.0,0.05]
[1718284686109,0.178,67864.0,67862.0,0.1]
[1718284686539,0.178,67864.0,67863.0,0.05]
[1718284686747,0.178,67864.0,67863.0,0.051]
[1718284687188,0.178,67864.0,67863.0,0.052]
[1718284687606,0.33261993,67875.0,67866.0,0.05]
[1718284687817,0.178,67867.0,67866.0,0.05]
[1718284688279,0.178,67867.0,67863.0,0.001]
[1718284688280,0.1763,67866.0,67863.0,0.001]
[1718284688528,0.1763,67866.0,67860.0,0.05]
[1718284688737,0.178,67861.0,67860.0,0.1]
[1718284689175,0.178,67861.0,67860.0,0.05]
[1718284689603,0.178,67861.0,67858.0,0.05]
[1718284689853,0.178,67861.0,67859.0,0.1]
[1718284690301,0.178,67861.0,67860.0,0.008]
[1718284691087,0.178,67861.0,67860.0,0.08015996]
[1718284691294,0.178,67861.0,67859.0,0.05]
[1718284692114,0.179,67861.0,67860.0,0.009]
[1718284692555,0.178,67861.0,67859.0,0.05]
[1718284693154,0.14431993,67860.0,67853.0,0.05]
[1718284693306,0.14431993,67860.0,67859.0,0.01]
[1718284693512,0.32231993,67860.0,67859.0,0.01]
[1718284694473,0.49861993,67860.0,67859.0,0.01]
[1718284695167,0.49861993,67860.0,67850.0,0.000946]
[1718284695383,0.178,67854.0,67850.0,0.000946]
[1718284695594,0.14431993,67853.0,67850.0,0.000946]
[1718284696245,0.14431993,67853.0,67850.0,0.050946]
[1718284696456,0.14431993,67853.0,67850.0,0.051946]
[1718284696889,0.178,67854.0,67851.0,0.07215996]
[1718284697793,0.178,67859.0,67854.0,0.05]
[1718284697994,0.178,67859.0,67850.0,0.050946]
[1718284698201,0.178,67852.0,67851.0,0.051]
[1718284699067,0.178,67852.0,67851.0,0.05]
[1718284699345,0.178,67852.0,67851.0,0.15]
[1718284699731,0.191,67852.0,67851.0,0.151]
[1718284699960,0.013,67852.0,67851.0,0.151]
[1718284700167,0.178,67857.0,67851.0,0.05]
[1718284700369,0.178,67857.0,67853.0,0.1]
[1718284700572,0.178,67857.0,67852.0,0.05]
[1718284700720,0.178,67857.0,67852.0,0.15]
[1718284701295,0.178,67857.0,67852.0,0.05]
[1718284702984,0.178,67857.0,67853.0,0.1]
[1718284703412,0.184,67857.0,67853.0,0.1]
[1718284703933,0.184,67857.0,67854.0,0.1]
[1718284704133,0.178,67857.0,67854.0,0.1]
[1718284704350,0.178,67857.0,67852.0,0.15]
[1718284704558,0.178,67857.0,67852.0,0.05]
[1718284705224,0.178,67857.0,67852.0,0.051]
[1718284705637,0.184,67857.0,67853.0,0.001]
[1718284706083,0.178,67857.0,67852.0,0.051]
[1718284706257,0.178,67857.0,67852.0,0.001]
[1718284706519,0.178,67857.0,67852.0,0.002]
[1718284706520,0.184,67857.0,67852.0,0.002]
[1718284706927,0.14431993,67856.0,67852.0,0.002]
[1718284707141,0.14431993,67856.0,67852.0,0.001]
[1718284707369,0.14431993,67856.0,67852.0,0.002]
[1718284708009,0.14431993,67856.0,67852.0,0.001]
[1718284708673,0.14431993,67856.0,67852.0,0.002]
[1718284708894,0.14431993,67856.0,67852.0,0.001]
[1718284709179,0.15231993,67856.0,67852.0,0.002]
[1718284709406,0.15231993,67856.0,67852.0,0.001]
[1718284709407,0.3057139,67855.0,67852.0,0.001]
[1718284709650,0.14431993,67854.0,67852.0,0.001]
[1718284710094,0.14431993,67854.0,67852.0,0.002]
[1718284710307,0.14431993,67854.0,67852.0,0.001]
[1718284711629,0.1763,67853.0,67852.0,0.001]
[1718284711862,0.62633768,67853.0,67852.0,0.001]
[1718284712089,0.6494573,67853.0,67852.0,0.001]
[1718284712303,0.6494573,67853.0,67850.0,0.000946]
[1718284712518,0.178,67851.0,67850.0,0.000946]
[1718284712730,0.62803768,67851.0,67850.0,0.000946]
[1718284712953,0.72381901,67851.0,67850.0,0.000946]
[1718284713359,0.90011901,67851.0,67850.0,0.000946]
[1718284713786,1.00011901,67851.0,67850.0,0.000946]
[1718284714001,1.07499744,67851.0,67850.0,0.000946]
[1718284714259,1.02322563,67851.0,67850.0,0.000946]
[1718284714466,0.9274443,67851.0,67850.0,0.000946]
[1718284715095,0.9792798,67851.0,67850.0,0.000946]
[1718284715311,0.97927632,67851.0,67850.0,0.000946]
[1718284715547,0.9274443,67851.0,67850.0,0.000946]
[1718284715777,1.03581462,67851.0,67850.0,0.000946]
[1718284716035,1.13150695,67851.0,67850.0,0.000946]
[1718284716249,0.97924585,67851.0,67850.0,0.000946]
[1718284716477,0.9274443,67851.0,67850.0,0.000946]
[1718284716700,0.91733768,67851.0,67850.0,0.001946]
[1718284716879,1.01085931,67851.0,67850.0,0.001946]
[1718284717152,1.02103385,67851.0,67850.0,0.000946]
[1718284717572,1.07440149,67851.0,67850.0,0.001946]
[1718284717780,0.99387986,67851.0,67850.0,0.001946]
[1718284717991,0.94051222,67851.0,67850.0,0.001946]
[1718284718198,0.94051222,67851.0,67850.0,0.002946]
[1718284718411,0.94051222,67851.0,67850.0,0.001946]
[1718284719342,0.94051222,67851.0,67850.0,0.002946]
[1718284719552,0.92751222,67851.0,67850.0,0.001946]
[1718284719755,0.94051222,67851.0,67850.0,0.002946]
[1718284719976,0.63479447,67851.0,67850.0,0.002946]
[1718284720188,0.76425537,67851.0,67850.0,0.002946]
[1718284720406,0.75125537,67851.0,67850.0,0.001946]
[1718284720646,0.72808083,67851.0,67850.0,0.001946]
[1718284720848,0.74108083,67851.0,67850.0,0.002946]
[1718284721263,0.74108083,67851.0,67850.0,0.001946]
[1718284721264,0.72808083,67851.0,67850.0,0.001946]
[1718284721465,0.90438083,67851.0,67850.0,0.001946]
[1718284722105,1.0223319,67851.0,67850.0,0.001946]
[1718284722311,1.0223319,67851.0,67850.0,0.000946]
[1718284722521,1.07524916,67851.0,67850.0,0.000946]
[1718284722950,1.07524916,67851.0,67850.0,0.001946]
[1718284722951,1.0353319,67851.0,67850.0,0.001946]
[1718284723082,1.0353319,67851.0,67850.0,0.002946]
[1718284723488,1.07521442,67851.0,67850.0,0.001946]
[1718284723710,1.0223319,67851.0,67850.0,0.001946]
[1718284723957,0.94046388,67851.0,67850.0,0.002946]
[1718284724812,0.94046388,67851.0,67850.0,0.001946]
[1718284725430,0.76416388,67851.0,67850.0,0.001946]
[1718284725975,0.74108083,67851.0,67850.0,0.001946]
[1718284726173,0.83724885,67851.0,67850.0,0.001946]
[1718284726804,0.74108083,67851.0,67850.0,0.001946]
[1718284727018,0.56308083,67851.0,67850.0,0.001946]
[1718284727221,0.64108083,67851.0,67850.0,0.002946]
[1718284727425,0.33531993,67851.0,67850.0,0.002946]
[1718284727642,0.33531993,67851.0,67850.0,0.179846]
[1718284728621,0.33531993,67851.0,67850.0,0.178846]
[1718284728831,0.191,67851.0,67850.0,0.101946]
[1718284729058,0.013,67851.0,67850.0,0.171946]
[1718284729265,0.178,67861.0,67858.0,0.0772]
[1718284729486,0.32231993,67861.0,67859.0,0.0997]
[1718284729934,0.178,67861.0,67859.0,0.0997]
[1718284730379,0.05,67870.0,67861.0,0.15]
[1718284730594,0.178,67866.0,67861.0,0.15]
[1718284730798,0.178,67866.0,67865.0,0.1]
[1718284731426,0.178,67866.0,67861.0,0.05]
[1718284731640,0.178,67866.0,67861.0,0.15]
[1718284732062,0.2527,67864.0,67850.0,0.062946]
[1718284732266,0.178,67851.0,67850.0,0.012946]
[1718284732671,0.178,67851.0,67850.0,0.000946]
[1718284732882,0.178,67851.0,67850.0,0.150946]
[1718284733097,0.14431993,67863.0,67853.0,0.05]
[1718284733322,0.14431993,67863.0,67857.0,0.17215996]
[1718284733535,0.14431993,67863.0,67857.0,0.07215996]
[1718284733536,0.178,67861.0,67857.0,0.07215996]
[1718284734451,0.178,67861.0,67857.0,0.17215996]
[1718284734656,0.178,67861.0,67855.0,0.2269]
[1718284735066,0.178,67861.0,67855.0,0.1769]
[1718284735277,0.178,67856.0,67855.0,0.1769]
[1718284736593,0.178,67856.0,67855.0,0.1779]
[1718284737262,0.179,67856.0,67855.0,0.1839]
[1718284737715,0.179,67856.0,67855.0,0.2339]
[1718284737925,0.179,67856.0,67855.0,0.4039]
[1718284737926,0.001,67856.0,67855.0,0.4039]
[1718284738584,0.001,67856.0,67855.0,0.4029]
[1718284739426,0.001,67856.0,67855.0,0.4089]
[1718284741650,0.001,67856.0,67855.0,0.4189]
[1718284742119,0.001,67856.0,67855.0,0.56321993]
[1718284742565,0.001,67856.0,67855.0,0.68546692]
[1718284743398,0.001,67856.0,67855.0,0.67546692]
[1718284743615,0.001,67856.0,67855.0,0.55721993]
[1718284743827,0.178,67868.0,67867.0,0.2769]
[1718284744043,0.178,67868.0,67867.0,0.05]
[1718284744269,0.34011993,67868.0,67860.0,0.05]
[1718284744493,0.178,67862.0,67860.0,0.05]
[1718284744726,0.178,67862.0,67856.0,0.05]
[1718284744727,0.32231993,67862.0,67856.0,0.05]
[1718284744959,0.178,67864.0,67855.0,0.014]
[1718284744960,0.178,67857.0,67855.0,0.014]
[1718284745170,0.001,67856.0,67855.0,0.028]
[1718284745596,0.001,67856.0,67855.0,0.014]
[1718284745597,0.0757,67856.0,67855.0,0.014]
[1718284745804,0.0747,67856.0,67855.0,0.014]
[1718284746487,0.26969331,67856.0,67855.0,0.014]
[1718284746700,0.37129331,67856.0,67855.0,0.014]
[1718284746916,0.41512214,67856.0,67855.0,0.014]
[1718284747794,0.41512214,67856.0,67850.0,0.000946]
[1718284747795,0.36444876,67856.0,67850.0,0.000946]
[1718284748023,0.178,67851.0,67850.0,0.000946]
[1718284748232,0.36613885,67851.0,67850.0,0.000946]
[1718284748866,0.32231993,67851.0,67850.0,0.000946]
[1718284749944,0.33131993,67851.0,67850.0,0.001946]
[1718284751675,0.32231993,67851.0,67850.0,0.000946]
[1718284751889,0.178,67851.0,67850.0,0.000946]
[1718284752106,0.008,67851.0,67850.0,0.079146]
[1718284752311,0.008,67851.0,67850.0,0.37130596]
[1718284752990,0.178,67867.0,67861.0,0.1]
[1718284753192,0.178,67867.0,67851.0,0.0997]
[1718284753193,0.178,67867.0,67865.0,0.1]
[1718284753414,0.178,67867.0,67866.0,0.1]
[1718284753646,0.178,67867.0,67865.0,0.15]
[1718284753876,0.178,67867.0,67866.0,0.1]
[1718284754311,0.178,67867.0,67865.0,0.15]
[1718284755569,0.178,67867.0,67866.0,0.1]
[1718284755780,0.178,67867.0,67865.0,0.05]
[1718284755990,0.179,67867.0,67866.0,0.008]
[1718284756395,0.178,67867.0,67865.0,0.05]
[1718284756859,0.186,67867.0,67865.0,0.051]
[1718284757278,0.186,67867.0,67865.0,0.151]
[1718284757503,0.178,67867.0,67865.0,0.15]
[1718284758902,0.178,67867.0,67866.0,0.1]
[1718284759317,0.178,67867.0,67865.0,0.151]
[1718284759551,0.186,67867.0,67865.0,0.151]
[1718284759872,0.178,67867.0,67865.0,0.15]
[1718284760335,0.186,67867.0,67866.0,0.001]
[1718284761006,0.186,67867.0,67865.0,0.05]
[1718284761007,0.178,67867.0,67865.0,0.05]
[1718284761208,0.178,67867.0,67864.0,0.0997]
[1718284761425,0.178,67867.0,67866.0,0.001]
[1718284762886,0.186,67867.0,67866.0,0.001]
[1718284763264,0.178,67867.0,67866.0,0.001]
[1718284763864,0.186,67867.0,67866.0,0.002]
[1718284764517,0.186,67867.0,67866.0,0.001]
[1718284765273,0.33031993,67867.0,67866.0,0.001]
[1718284765495,0.43191993,67867.0,67866.0,0.001]
[1718284765674,0.43191993,67867.0,67866.0,0.002]
[1718284766114,0.008,67867.0,67866.0,0.1789]
[1718284766329,0.008,67867.0,67866.0,0.2989]
[1718284767394,0.008,67867.0,67866.0,0.3989]
[1718284767832,0.008,67867.0,67866.0,0.5211291]
[1718284768054,0.008,67867.0,67866.0,0.5311291]
[1718284768269,0.008,67867.0,67866.0,0.5211291]
[1718284768473,0.008,67867.0,67866.0,0.5311291]
[1718284768705,0.008,67867.0,67866.0,0.59224113]
[1718284769230,0.00086,67875.0,67866.0,0.59224113]
[1718284769231,0.00086,67875.0,67874.0,0.2769]
[1718284769427,0.00086,67875.0,67874.0,0.3969]
[1718284770933,0.00086,67875.0,67874.0,0.3769]
[1718284771083,0.00086,67875.0,67874.0,0.3969]
[1718284772790,0.00186,67875.0,67874.0,0.4109]
[1718284773231,0.00086,67875.0,67874.0,0.3969]
[1718284773641,0.00186,67875.0,67874.0,0.4099]
[1718284774473,0.00086,67875.0,67874.0,0.2769]
[1718284774748,0.00086,67875.0,67874.0,0.1]
[1718284775168,0.00086,67875.0,67874.0,0.05]
[1718284776282,0.00086,67875.0,67874.0,0.063]
[1718284776700,0.00186,67875.0,67874.0,0.077]
[1718284777342,0.00086,67875.0,67874.0,0.063]
[1718284778427,0.00186,67875.0,67874.0,0.026]
[1718284778643,0.00186,67875.0,67874.0,0.076]
[1718284779074,0.18179593,67875.0,67874.0,0.026]
[1718284779724,0.14617993,67875.0,67874.0,0.026]
[1718284780145,0.14517993,67875.0,67874.0,0.013]
[1718284780595,0.14617993,67875.0,67874.0,0.02]
[1718284781030,0.14517993,67875.0,67874.0,0.013]
[1718284781463,0.15217993,67875.0,67874.0,0.014]
[1718284781665,0.15217993,67875.0,67874.0,0.001]
[1718284782098,0.14517993,67875.0,67867.0,0.05]
[1718284782302,0.178,67868.0,67867.0,0.05]
[1718284783942,0.178,67868.0,67867.0,0.2472]
[1718284784206,0.00886,67875.0,67874.0,0.15]
[1718284784411,0.00886,67875.0,67874.0,0.17]
[1718284784577,0.00086,67875.0,67874.0,0.05]
[1718284784838,0.00086,67875.0,67874.0,0.1497]
[1718284785683,0.00086,67875.0,67874.0,0.2497]
[1718284785910,0.00086,67875.0,67874.0,0.2697]
[1718284786947,0.00086,67875.0,67874.0,0.2707]
[1718284787150,0.00886,67875.0,67874.0,0.2717]
[1718284787714,0.00886,67875.0,67874.0,0.2707]
[1718284788110,0.00886,67875.0,67874.0,0.1507]
[1718284789129,0.00886,67875.0,67874.0,0.051]
[1718284790752,0.00886,67875.0,67874.0,0.052]
[1718284793950,0.24656593,67875.0,67874.0,0.002]
[1718284794545,0.55218637,67875.0,67874.0,0.002]
[1718284797566,0.61774955,67875.0,67874.0,0.002]
[1718284798087,0.61774955,67875.0,67860.0,0.1969]
[1718284798088,0.1016,67874.0,67859.0,0.05]
[1718284798296,0.1016,67864.0,67850.0,0.000946]
[1718284798527,0.04374476,67862.0,67854.0,0.05]
[1718284798725,0.178,67855.0,67851.0,0.1769]
[1718284798930,0.178,67855.0,67854.0,0.05]
[1718284799368,0.178,67855.0,67851.0,0.1769]
[1718284799369,0.178,67855.0,67852.0,0.05]
[1718284799576,0.06561714,67862.0,67854.0,0.05]
[1718284799577,0.04374476,67860.0,67854.0,0.05]
[1718284799816,0.178,67856.0,67854.0,0.1]
[1718284800848,0.178,67856.0,67854.0,0.2]
[1718284801245,0.178,67856.0,67855.0,0.1]
[1718284801403,0.178,67861.0,67860.0,0.05]
[1718284801610,0.23913515,67861.0,67860.0,0.3469]
[1718284801819,0.178,67861.0,67860.0,0.3469]
[1718284802197,0.178,67861.0,67860.0,0.2269]
[1718284802664,0.16211993,67861.0,67851.0,0.05]
[1718284802836,0.16211993,67861.0,67850.0,0.000946]
[1718284802837,0.14431993,67860.0,67854.0,0.05]
[1718284803057,0.178,67855.0,67854.0,0.05]
[1718284805913,0.184,67855.0,67854.0,0.052]
[1718284806913,0.184,67855.0,67850.0,0.000946]
[1718284806914,0.53805192,67855.0,67850.0,0.000946]
[1718284807122,0.14431993,67853.0,67850.0,0.000946]
[1718284807383,0.1747,67852.0,67850.0,0.000946]
[1718284807588,0.47091412,67851.0,67850.0,0.000946]
[1718284807754,0.57091325,67851.0,67850.0,0.000946]
[1718284807965,0.24431993,67851.0,67850.0,0.000946]
[1718284810047,0.28805223,67851.0,67850.0,0.000946]
[1718284810194,0.25831993,67851.0,67850.0,0.001946]
[1718284810585,0.27231993,67851.0,67850.0,0.001946]
[1718284810807,0.17231993,67851.0,67850.0,0.001946]
[1718284813561,0.34861993,67851.0,67850.0,0.001946]
[1718284813778,0.1763,67850.0,67833.0,0.05]
[1718284813984,0.0437323,67848.0,67834.0,0.05]
[1718284814224,0.178,67835.0,67834.0,0.05]
[1718284814444,0.32231993,67835.0,67834.0,0.05]
[1718284815113,0.32231993,67835.0,67831.0,0.05]
[1718284815337,0.178,67832.0,67831.0,0.05]
[1718284815579,0.178,67832.0,67827.0,0.05]
[1718284815789,0.14431993,67834.0,67826.0,0.1]
[1718284816016,0.178,67828.0,67819.0,0.000946]
[1718284816299,0.178,67828.0,67820.0,0.05]
[1718284816300,0.16211993,67827.0,67820.0,0.05]
[1718284816508,0.16211993,67827.0,67819.0,0.000946]
[1718284816509,0.178,67820.0,67819.0,0.000946]
[1718284816721,0.32231993,67820.0,67819.0,0.050946]
[1718284816938,0.178,67821.0,67820.0,0.2269]
[1718284817369,0.178,67821.0,67820.0,0.3269]
[1718284817574,0.178,67821.0,67820.0,0.2469]
[1718284817781,0.14431993,67832.0,67828.0,0.1]
[1718284818007,0.178,67827.0,67826.0,0.1]
[1718284818437,0.1985675,67849.0,67834.0,0.1]
[1718284818664,0.14431993,67842.0,67835.0,0.1]
[1718284818879,0.178,67839.0,67838.0,0.1]
[1718284819320,0.34991675,67839.0,67835.0,0.05]
[1718284819524,0.14431993,67838.0,67835.0,0.05]
[1718284820605,0.14431993,67838.0,67835.0,0.15]
[1718284821254,0.14431993,67838.0,67835.0,0.05]
[1718284821668,0.15831993,67838.0,67835.0,0.05]
[1718284821880,0.15831993,67838.0,67832.0,0.02]
[1718284822082,0.178,67833.0,67832.0,0.05]
[1718284824318,0.178,67833.0,67832.0,0.17]
[1718284824519,0.178,67838.0,67837.0,0.1]
[1718284824724,0.178,67838.0,67835.0,0.05]
[1718284824963,0.178,67838.0,67837.0,0.247]
[1718284825239,0.178,67844.0,67843.0,0.12]
[1718284825804,0.178,67844.0,67843.0,0.17]
[1718284827076,0.058974,67853.0,67845.0,0.05]
[1718284827281,0.14431993,67853.0,67852.0,0.1]
[1718284827481,0.32231993,67853.0,67852.0,0.1]
[1718284827888,0.34039755,67853.0,67852.0,0.1]
[1718284829311,0.058971,67858.0,67854.0,0.1]
[1718284829515,0.1,67869.0,67862.0,0.1]
[1718284829721,0.178,67862.0,67858.0,0.1]
[1718284829919,0.178,67862.0,67856.0,0.1]
[1718284830252,0.178,67862.0,67855.0,0.2]
[1718284830452,0.178,67857.0,67856.0,0.12]
[1718284831955,0.14431993,67868.0,67855.0,0.1]
[1718284831956,0.178,67862.0,67861.0,0.12]
[1718284832096,0.185,67862.0,67861.0,0.12]
[1718284833571,0.178,67862.0,67859.0,0.1]
[1718284833779,0.178,67862.0,67857.0,0.05]
[1718284834998,0.179,67862.0,67859.0,0.007]
[1718284835831,0.185,67862.0,67859.0,0.107]
[1718284836292,0.179,67862.0,67859.0,0.007]
[1718284836587,0.0649,67860.0,67859.0,0.007]
[1718284836802,0.20921993,67860.0,67859.0,0.007]
[1718284837034,0.20921993,67860.0,67849.0,0.05]
[1718284837233,0.178,67850.0,67849.0,0.05]
[1718284837439,0.32231993,67850.0,67846.0,0.05]
[1718284837653,0.32231993,67850.0,67849.0,0.05]
[1718284839498,0.32231993,67850.0,67846.0,0.05]
[1718284839720,0.35455192,67850.0,67849.0,0.05]
[1718284839916,0.32231993,67850.0,67849.0,0.05]
[1718284840500,0.32331993,67850.0,67849.0,0.05]
[1718284840758,0.46881993,67850.0,67849.0,0.007]
[1718284841593,0.46781993,67850.0,67842.0,0.05]
[1718284841790,0.178,67843.0,67842.0,0.05]
[1718284841999,0.32231993,67843.0,67842.0,0.05]
[1718284843530,0.33631993,67843.0,67842.0,0.05]
[1718284844793,0.33631993,67843.0,67839.0,0.05]
[1718284845073,0.192,67843.0,67842.0,0.05]
[1718284845302,0.192,67843.0,67834.0,0.05]
[1718284845303,0.014,67843.0,67837.0,0.05]
[1718284845509,0.014,67843.0,67838.0,0.05]
[1718284845729,0.014,67843.0,67832.0,0.050946]
[1718284845730,0.178,67838.0,67832.0,0.050946]
[1718284845966,0.028,67843.0,67832.0,0.050946]
[1718284845967,0.178,67833.0,67832.0,0.050946]
[1718284846185,0.178,67833.0,67832.0,0.000946]
[1718284846388,0.32231993,67833.0,67832.0,0.000946]
[1718284848067,0.33631993,67833.0,67832.0,0.000946]
[1718284848623,0.37747192,67833.0,67832.0,0.000946]
[1718284849558,0.35031993,67833.0,67832.0,0.001946]
[1718284853297,0.36765343,67833.0,67832.0,0.001946]
[1718284853736,0.028,67833.0,67832.0,0.001946]
[1718284853951,0.028,67833.0,67832.0,0.229546]
[1718284854207,0.028,67833.0,67832.0,0.249546]
[1718284854661,0.028,67833.0,67832.0,0.362746]
[1718284860034,0.028,67833.0,67832.0,0.342746]
[1718284860250,0.028,67833.0,67832.0,0.242746]
[1718284860521,0.35031993,67833.0,67832.0,0.001946]
[1718284860731,0.39961192,67833.0,67832.0,0.001946]
[1718284861613,0.57691192,67833.0,67832.0,0.001946]
[1718284861860,0.64151192,67833.0,67832.0,0.001946]
[1718284862062,0.68518115,67833.0,67832.0,0.001946]
[1718284862240,0.67118115,67833.0,67832.0,0.000946]
[1718284862706,0.62751192,67833.0,67832.0,0.001946]
[1718284863125,0.67118115,67833.0,67816.0,0.1]
[1718284863302,0.178,67820.0,67816.0,0.2]
[1718284863509,0.178,67820.0,67819.0,0.120946]
[1718284863920,0.178,67820.0,67819.0,0.000946]
[1718284865903,0.192,67820.0,67819.0,0.000946]
[1718284866740,0.178,67820.0,67819.0,0.000946]
[1718284867400,0.34011993,67820.0,67819.0,0.000946]
[1718284867804,0.41811993,67820.0,67819.0,0.000946]
[1718284868696,0.35411993,67820.0,67819.0,0.000946]
[1718284868899,0.33631993,67820.0,67819.0,0.000946]
[1718284869114,0.34293993,67820.0,67819.0,0.000946]
[1718284882122,0.34293993,67820.0,67819.0,0.100946]
[1718284882511,0.34293993,67820.0,67819.0,0.120946]
[1718284882888,0.19862,67820.0,67819.0,0.120946]
[1718284883092,0.028,67820.0,67819.0,0.296246]
[1718284883257,0.028,67820.0,67819.0,0.362246]
[1718284884101,0.028,67820.0,67819.0,0.372246]
[1718284884306,0.014,67820.0,67819.0,0.362246]
[1718284884744,0.014,67820.0,67819.0,0.372246]
[1718284884903,0.015,67820.0,67819.0,0.372246]
[1718284885114,0.001,67820.0,67819.0,0.49456144]
[1718284885545,0.002,67820.0,67819.0,0.49456144]
[1718284890603,0.002,67820.0,67819.0,0.48456144]
[1718284891395,0.002,67820.0,67819.0,0.49456144]
[1718284892015,0.002,67820.0,67819.0,0.48456144]
[1718284892482,0.002,67820.0,67819.0,0.372246]
[1718284892916,0.002,67820.0,67819.0,0.49456262]
[1718284893324,0.002,67820.0,67819.0,0.48456262]
[1718284893929,0.002,67820.0,67819.0,0.362246]
[1718284894276,0.002,67820.0,67819.0,0.170946]
[1718284894463,0.46841993,67820.0,67819.0,0.000946]
[1718284895867,0.46741993,67820.0,67819.0,0.000946]
[1718284896189,0.46641993,67820.0,67819.0,0.000946]
[1718284896391,0.48041993,67820.0,67819.0,0.000946]
[1718284896601,0.48441993,67820.0,67819.0,0.000946]
[1718284896814,0.48041993,67820.0,67819.0,0.000946]
[1718284897025,0.46641993,67820.0,67819.0,0.000946]
[1718284897236,0.48041993,67820.0,67819.0,0.000946]
[1718284897872,0.53023372,67820.0,67819.0,0.000946]
[1718284898081,0.63023372,67820.0,67819.0,0.000946]
[1718284898293,0.93611476,67820.0,67819.0,0.000946]
[1718284898497,1.40923303,67820.0,67819.0,0.000946]
[1718284899117,1.32197789,67820.0,67819.0,0.000946]